[Event "Titled Tuesday Blitz March 21 Early 2023"]
[White "Le, Tuan Minh"]
[Black "Bolourchifard, Farzad"]
[WhiteFideId "12401153"]
[BlackFideId "12510084"]
[WhiteElo "2558"]
[BlackElo "2317"]
[Result "1-0"]
[Round "10"]
[TimeControl "180+2"]
[Date "2023.03.21"]
[WhiteClock "0:00:50"]
[BlackClock "0:00:09"]

1. d4 {[%clk 0:03:00]}  Nf6 {[%clk 0:02:56]} 2. Nf3 {[%clk 0:03:00]}  e6 {[%clk 0:02:56]} 3. Bf4 {[%clk 0:03:00]}  c5 {[%clk 0:02:54]} 4. c3 {[%clk 0:03:01]}  b6 {[%clk 0:02:51]} 5. e3 {[%clk 0:03:00]}  Be7 {[%clk 0:02:51]} 6. Bd3 {[%clk 0:03:00]}  O-O {[%clk 0:02:51]} 7. O-O {[%clk 0:02:59]}  Ba6 {[%clk 0:02:52]} 8. Bxa6 {[%clk 0:02:58]}  Nxa6 {[%clk 0:02:53]} 9. Qe2 {[%clk 0:02:52]}  Nc7 {[%clk 0:02:45]} 10. e4 {[%clk 0:02:45]}  d6 {[%clk 0:02:37]} 11. Nbd2 {[%clk 0:02:38]}  Re8 {[%clk 0:02:34]} 12. Rfe1 {[%clk 0:02:35]}  h6 {[%clk 0:02:08]} 13. h3 {[%clk 0:02:34]}  cxd4 {[%clk 0:01:53]} 14. cxd4 {[%clk 0:02:34]}  Qd7 {[%clk 0:01:54]} 15. a4 {[%clk 0:01:56]}  a6 {[%clk 0:01:20]} 16. Rec1 {[%clk 0:01:39]}  Reb8 {[%clk 0:01:00]} 17. e5 {[%clk 0:01:20]}  Nfd5 {[%clk 0:00:58]} 18. Bg3 {[%clk 0:01:20]}  b5 {[%clk 0:00:36]} 19. Ne4 {[%clk 0:01:20]}  Ne8 {[%clk 0:00:32]} 20. exd6 {[%clk 0:01:13]}  Nxd6 {[%clk 0:00:18]} 21. Ne5 {[%clk 0:01:13]}  Qe8 {[%clk 0:00:17]} 22. Nc6 {[%clk 0:00:56]}  Nxe4 {[%clk 0:00:16]} 23. Bxb8 {[%clk 0:00:57]}  Nef6 {[%clk 0:00:09]} 24. axb5 {[%clk 0:00:50]} 1-0


[Site "https://www.chess.com"]

[Event "Titled Tuesday Blitz March 21 Early 2023"]
[White "Howell, David W L"]
[Black "Vogel, Roven"]
[WhiteFideId "410608"]
[BlackFideId "12908088"]
[WhiteElo "2567"]
[BlackElo "2518"]
[Result "1/2-1/2"]
[Round "10"]
[TimeControl "180+2"]
[Date "2023.03.21"]
[WhiteClock "0:00:04"]
[BlackClock "0:01:32"]

1. d4 {[%clk 0:03:00]}  d5 {[%clk 0:02:58]} 2. Nf3 {[%clk 0:03:00]}  Nf6 {[%clk 0:02:58]} 3. c4 {[%clk 0:03:00]}  c6 {[%clk 0:02:58]} 4. Qc2 {[%clk 0:02:58]}  dxc4 {[%clk 0:02:47]} 5. Qxc4 {[%clk 0:02:59]}  Bg4 {[%clk 0:02:47]} 6. Nbd2 {[%clk 0:02:59]}  e6 {[%clk 0:02:47]} 7. g3 {[%clk 0:02:59]}  Nbd7 {[%clk 0:02:47]} 8. Bg2 {[%clk 0:03:00]}  Be7 {[%clk 0:02:47]} 9. O-O {[%clk 0:03:00]}  O-O {[%clk 0:02:48]} 10. Qb3 {[%clk 0:02:56]}  Qb6 {[%clk 0:02:46]} 11. Rd1 {[%clk 0:02:53]}  Rfd8 {[%clk 0:02:45]} 12. Nc4 {[%clk 0:02:47]}  Qa6 {[%clk 0:02:42]} 13. Bg5 {[%clk 0:02:25]}  h6 {[%clk 0:02:41]} 14. Bxf6 {[%clk 0:02:26]}  Nxf6 {[%clk 0:02:37]} 15. Rac1 {[%clk 0:02:21]}  Rac8 {[%clk 0:02:29]} 16. a3 {[%clk 0:02:11]}  Bf8 {[%clk 0:02:24]} 17. Nce5 {[%clk 0:01:58]}  Bf5 {[%clk 0:02:15]} 18. e3 {[%clk 0:01:56]}  Be4 {[%clk 0:02:12]} 19. Bf1 {[%clk 0:01:25]}  b5 {[%clk 0:02:12]} 20. Nd2 {[%clk 0:01:02]}  Bd5 {[%clk 0:02:12]} 21. Qd3 {[%clk 0:01:03]}  c5 {[%clk 0:02:06]} 22. Qxb5 {[%clk 0:01:01]}  Qxb5 {[%clk 0:02:04]} 23. Bxb5 {[%clk 0:01:02]}  Rb8 {[%clk 0:02:02]} 24. a4 {[%clk 0:00:57]}  cxd4 {[%clk 0:02:01]} 25. exd4 {[%clk 0:00:57]}  a6 {[%clk 0:01:59]} 26. Bxa6 {[%clk 0:00:57]}  Rxb2 {[%clk 0:01:59]} 27. Bb5 {[%clk 0:00:55]}  Bb4 {[%clk 0:01:58]} 28. Ndc4 {[%clk 0:00:54]}  Ra2 {[%clk 0:01:54]} 29. Ra1 {[%clk 0:00:41]}  Rxa1 {[%clk 0:01:54]} 30. Rxa1 {[%clk 0:00:42]}  Bc3 {[%clk 0:01:55]} 31. Rd1 {[%clk 0:00:39]}  Bxc4 {[%clk 0:01:40]} 32. Bxc4 {[%clk 0:00:27]}  Rxd4 {[%clk 0:01:41]} 33. Rxd4 {[%clk 0:00:27]}  Bxd4 {[%clk 0:01:41]} 34. Nc6 {[%clk 0:00:25]}  Bc5 {[%clk 0:01:39]} 35. a5 {[%clk 0:00:21]}  Ne4 {[%clk 0:01:39]} 36. a6 {[%clk 0:00:20]}  Nd6 {[%clk 0:01:37]} 37. Bxe6 {[%clk 0:00:02]}  fxe6 {[%clk 0:01:34]} 38. a7 {[%clk 0:00:02]}  Bxa7 {[%clk 0:01:33]} 39. Nxa7 {[%clk 0:00:03]}  Kf7 {[%clk 0:01:32]} 40. Nc6 {[%clk 0:00:04]} 1/2-1/2


[Site "https://www.chess.com"]

[Event "Titled Tuesday Blitz March 21 Early 2023"]
[White "Zhigalko, Sergei"]
[Black "Bok, Benjamin"]
[WhiteFideId "13502956"]
[BlackFideId "1017063"]
[WhiteElo "2626"]
[BlackElo "2658"]
[Result "0-1"]
[Round "10"]
[TimeControl "180+2"]
[Date "2023.03.21"]
[WhiteClock "0:00:02"]
[BlackClock "0:00:05"]

1. e4 {[%clk 0:03:00]}  c5 {[%clk 0:03:00]} 2. c3 {[%clk 0:03:00]}  Nf6 {[%clk 0:02:59]} 3. e5 {[%clk 0:03:01]}  Nd5 {[%clk 0:02:59]} 4. Nf3 {[%clk 0:03:02]}  Nc6 {[%clk 0:02:59]} 5. Bc4 {[%clk 0:03:02]}  Nb6 {[%clk 0:02:59]} 6. Bb3 {[%clk 0:03:03]}  d5 {[%clk 0:02:52]} 7. exd6 {[%clk 0:03:04]}  Qxd6 {[%clk 0:02:53]} 8. O-O {[%clk 0:03:04]}  Be6 {[%clk 0:02:53]} 9. Bxe6 {[%clk 0:03:04]}  Qxe6 {[%clk 0:02:53]} 10. a4 {[%clk 0:03:05]}  Nd5 {[%clk 0:02:41]} 11. d4 {[%clk 0:02:52]}  cxd4 {[%clk 0:02:40]} 12. Nxd4 {[%clk 0:02:52]}  Qd7 {[%clk 0:02:40]} 13. Na3 {[%clk 0:02:12]}  e6 {[%clk 0:02:38]} 14. Nab5 {[%clk 0:02:11]}  Be7 {[%clk 0:02:05]} 15. Qg4 {[%clk 0:02:04]}  O-O {[%clk 0:01:59]} 16. Rd1 {[%clk 0:02:04]}  Bf6 {[%clk 0:01:47]} 17. Bg5 {[%clk 0:01:53]}  Qe7 {[%clk 0:01:32]} 18. Bxf6 {[%clk 0:01:47]}  Nxf6 {[%clk 0:01:25]} 19. Qf3 {[%clk 0:01:35]}  Ne5 {[%clk 0:00:45]} 20. Qg3 {[%clk 0:01:22]}  Nc4 {[%clk 0:00:43]} 21. b3 {[%clk 0:01:20]}  Na5 {[%clk 0:00:43]} 22. Re1 {[%clk 0:01:11]}  g6 {[%clk 0:00:25]} 23. Nf5 {[%clk 0:00:49]}  Qc5 {[%clk 0:00:14]} 24. Re5 {[%clk 0:00:45]}  Qb6 {[%clk 0:00:10]} 25. Nfd4 {[%clk 0:00:12]}  a6 {[%clk 0:00:10]} 26. Na3 {[%clk 0:00:06]}  Rac8 {[%clk 0:00:08]} 27. b4 {[%clk 0:00:06]}  Nc6 {[%clk 0:00:07]} 28. Nxc6 {[%clk 0:00:06]}  Rxc6 {[%clk 0:00:08]} 29. b5 {[%clk 0:00:02]}  Rc5 {[%clk 0:00:09]} 30. Qe3 {[%clk 0:00:02]}  Rfc8 {[%clk 0:00:08]} 31. h3 {[%clk 0:00:02]}  Nd5 {[%clk 0:00:07]} 32. Qd4 {[%clk 0:00:01]}  R5c7 {[%clk 0:00:03]} 33. Qxb6 {[%clk 0:00:01]}  Nxb6 {[%clk 0:00:03]} 34. a5 {[%clk 0:00:01]}  Nd5 {[%clk 0:00:03]} 35. c4 {[%clk 0:00:01]}  Ne7 {[%clk 0:00:03]} 36. Rb1 {[%clk 0:00:01]}  Nf5 {[%clk 0:00:03]} 37. Ree1 {[%clk 0:00:01]}  Nd6 {[%clk 0:00:02]} 38. bxa6 {[%clk 0:00:01]}  bxa6 {[%clk 0:00:03]} 39. Rec1 {[%clk 0:00:01]}  Nxc4 {[%clk 0:00:04]} 40. Rxc4 {[%clk 0:00:02]}  Rxc4 {[%clk 0:00:04]} 41. Nxc4 {[%clk 0:00:03]}  Rxc4 {[%clk 0:00:04]} 42. Rb6 {[%clk 0:00:04]}  Rc1+ {[%clk 0:00:04]} 43. Kh2 {[%clk 0:00:04]}  Rc2 {[%clk 0:00:05]} 44. f3 {[%clk 0:00:05]}  Ra2 {[%clk 0:00:05]} 45. Rxa6 {[%clk 0:00:05]}  g5 {[%clk 0:00:05]} 46. Kg3 {[%clk 0:00:05]}  Kg7 {[%clk 0:00:06]} 47. Ra8 {[%clk 0:00:05]}  h5 {[%clk 0:00:06]} 48. a6 {[%clk 0:00:06]}  h4+ {[%clk 0:00:06]} 49. Kh2 {[%clk 0:00:06]}  Kf6 {[%clk 0:00:05]} 50. Kg1 {[%clk 0:00:02]}  Kf5 {[%clk 0:00:04]} 51. Kh2 {[%clk 0:00:02]}  f6 {[%clk 0:00:04]} 52. Kg1 {[%clk 0:00:02]}  e5 {[%clk 0:00:04]} 53. Kh2 {[%clk 0:00:02]}  Kf4 {[%clk 0:00:05]} 0-1


[Site "https://www.chess.com"]

[Event "Titled Tuesday Blitz March 21 Early 2023"]
[White "Gukesh D"]
[Black "Kamsky, Gata"]
[WhiteFideId "46616543"]
[BlackFideId "2000024"]
[WhiteElo "2612"]
[BlackElo "2666"]
[Result "0-1"]
[Round "10"]
[TimeControl "180+2"]
[Date "2023.03.21"]
[WhiteClock "0:00:01"]
[BlackClock "0:00:09"]

1. d4 {[%clk 0:03:00]}  d5 {[%clk 0:02:59]} 2. Nf3 {[%clk 0:03:00]}  Nf6 {[%clk 0:02:58]} 3. c4 {[%clk 0:03:00]}  c6 {[%clk 0:02:58]} 4. Nc3 {[%clk 0:02:57]}  a6 {[%clk 0:02:55]} 5. cxd5 {[%clk 0:02:54]}  cxd5 {[%clk 0:02:55]} 6. Bf4 {[%clk 0:02:55]}  Nc6 {[%clk 0:02:52]} 7. e3 {[%clk 0:02:54]}  Bg4 {[%clk 0:02:52]} 8. Be2 {[%clk 0:02:44]}  Bxf3 {[%clk 0:02:51]} 9. Bxf3 {[%clk 0:02:45]}  e6 {[%clk 0:02:52]} 10. O-O {[%clk 0:02:45]}  Bd6 {[%clk 0:02:52]} 11. Bg5 {[%clk 0:02:40]}  h6 {[%clk 0:02:49]} 12. Bxf6 {[%clk 0:02:30]}  Qxf6 {[%clk 0:02:47]} 13. Rc1 {[%clk 0:02:27]}  O-O {[%clk 0:02:46]} 14. Na4 {[%clk 0:02:26]}  Qe7 {[%clk 0:02:37]} 15. a3 {[%clk 0:02:21]}  Na5 {[%clk 0:02:32]} 16. Nb6 {[%clk 0:02:21]}  Rab8 {[%clk 0:02:23]} 17. b4 {[%clk 0:02:14]}  Nc6 {[%clk 0:02:22]} 18. Be2 {[%clk 0:02:05]}  Qd8 {[%clk 0:02:04]} 19. Na4 {[%clk 0:02:04]}  a5 {[%clk 0:02:05]} 20. b5 {[%clk 0:02:01]}  Ne7 {[%clk 0:02:04]} 21. Qb3 {[%clk 0:01:55]}  b6 {[%clk 0:02:00]} 22. Nb2 {[%clk 0:01:53]}  Qd7 {[%clk 0:01:56]} 23. a4 {[%clk 0:01:51]}  Rfc8 {[%clk 0:01:57]} 24. Nd3 {[%clk 0:01:51]}  Rxc1 {[%clk 0:01:54]} 25. Rxc1 {[%clk 0:01:52]}  Rc8 {[%clk 0:01:54]} 26. Rc3 {[%clk 0:01:43]}  Rxc3 {[%clk 0:01:53]} 27. Qxc3 {[%clk 0:01:44]}  Qc7 {[%clk 0:01:53]} 28. Qxc7 {[%clk 0:01:41]}  Bxc7 {[%clk 0:01:53]} 29. f4 {[%clk 0:01:36]}  Nf5 {[%clk 0:01:50]} 30. Kf2 {[%clk 0:01:36]}  Nd6 {[%clk 0:01:50]} 31. Bf3 {[%clk 0:01:30]}  g5 {[%clk 0:01:49]} 32. g3 {[%clk 0:01:20]}  f6 {[%clk 0:01:48]} 33. Ke2 {[%clk 0:01:08]}  Kf7 {[%clk 0:01:47]} 34. g4 {[%clk 0:01:02]}  f5 {[%clk 0:01:40]} 35. Ne5+ {[%clk 0:01:00]}  Ke7 {[%clk 0:01:39]} 36. h3 {[%clk 0:00:45]}  fxg4 {[%clk 0:01:12]} 37. hxg4 {[%clk 0:00:43]}  Nf7 {[%clk 0:01:10]} 38. Ng6+ {[%clk 0:00:19]}  Kf6 {[%clk 0:01:07]} 39. f5 {[%clk 0:00:20]}  Nd6 {[%clk 0:00:47]} 40. Ne5 {[%clk 0:00:14]}  exf5 {[%clk 0:00:29]} 41. Bxd5 {[%clk 0:00:13]}  fxg4 {[%clk 0:00:12]} 42. Nxg4+ {[%clk 0:00:13]}  Kg6 {[%clk 0:00:13]} 43. e4 {[%clk 0:00:13]}  h5 {[%clk 0:00:13]} 44. Ne3 {[%clk 0:00:13]}  g4 {[%clk 0:00:09]} 45. e5 {[%clk 0:00:13]}  Nc8 {[%clk 0:00:09]} 46. Be4+ {[%clk 0:00:12]}  Kg5 {[%clk 0:00:08]} 47. Nd5 {[%clk 0:00:12]}  Bd8 {[%clk 0:00:08]} 48. Kf2 {[%clk 0:00:07]}  h4 {[%clk 0:00:08]} 49. Kg2 {[%clk 0:00:05]}  Ne7 {[%clk 0:00:08]} 50. Nc3 {[%clk 0:00:05]}  Nf5 {[%clk 0:00:08]} 51. d5 {[%clk 0:00:04]}  Ne3+ {[%clk 0:00:07]} 52. Kf2 {[%clk 0:00:04]}  Nc4 {[%clk 0:00:07]} 53. e6 {[%clk 0:00:03]}  Nd6 {[%clk 0:00:08]} 54. Bd3 {[%clk 0:00:01]}  Kf4 {[%clk 0:00:08]} 55. Ne2+ {[%clk 0:00:01]}  Ke5 {[%clk 0:00:09]} 56. Ke3 {[%clk 0:00:02]}  Kxd5 {[%clk 0:00:09]} 57. Nf4+ {[%clk 0:00:02]}  Ke5 {[%clk 0:00:09]} 58. Be2 {[%clk 0:00:03]}  Bg5 {[%clk 0:00:08]} 59. Bxg4 {[%clk 0:00:01]}  Bxf4+ {[%clk 0:00:09]} 60. Kf3 {[%clk 0:00:01]}  Bg5 {[%clk 0:00:09]} 0-1


[Site "https://www.chess.com"]

[Event "Titled Tuesday Blitz March 21 Early 2023"]
[White "Seo, Jung Min"]
[Black "Grigoriants, Sergey"]
[WhiteFideId "1734687"]
[BlackFideId "4130804"]
[WhiteElo "2468"]
[BlackElo "2502"]
[Result "0-1"]
[Round "10"]
[TimeControl "180+2"]
[Date "2023.03.21"]
[WhiteClock "0:01:48"]
[BlackClock "0:01:53"]

1. d4 {[%clk 0:03:00]}  Nf6 {[%clk 0:02:54]} 2. c4 {[%clk 0:03:00]}  e6 {[%clk 0:02:52]} 3. Nf3 {[%clk 0:03:00]}  d5 {[%clk 0:02:52]} 4. Nc3 {[%clk 0:03:01]}  dxc4 {[%clk 0:02:47]} 5. e4 {[%clk 0:02:59]}  Bb4 {[%clk 0:02:44]} 6. Bxc4 {[%clk 0:02:50]}  Nxe4 {[%clk 0:02:43]} 7. O-O {[%clk 0:02:51]}  Nf6 {[%clk 0:02:43]} 8. Qa4+ {[%clk 0:02:50]}  Nc6 {[%clk 0:02:43]} 9. Ne5 {[%clk 0:02:47]}  Bd6 {[%clk 0:02:41]} 10. Nxc6 {[%clk 0:02:40]}  bxc6 {[%clk 0:02:42]} 11. Qxc6+ {[%clk 0:02:40]}  Bd7 {[%clk 0:02:43]} 12. Qf3 {[%clk 0:02:40]}  h6 {[%clk 0:02:43]} 13. Re1 {[%clk 0:02:33]}  O-O {[%clk 0:02:43]} 14. h3 {[%clk 0:02:33]}  Qb8 {[%clk 0:02:34]} 15. b3 {[%clk 0:02:29]}  Qb6 {[%clk 0:02:10]} 16. Bxh6 {[%clk 0:02:25]}  Bc6 {[%clk 0:02:01]} 17. Qe3 {[%clk 0:02:09]}  gxh6 {[%clk 0:02:00]} 18. Qxh6 {[%clk 0:02:08]}  Qxd4 {[%clk 0:01:57]} 19. Qg5+ {[%clk 0:02:08]}  Kh8 {[%clk 0:01:56]} 20. Rad1 {[%clk 0:01:48]}  Qf4 {[%clk 0:01:53]} 0-1


[Site "https://www.chess.com"]

[Event "Titled Tuesday Blitz March 21 Early 2023"]
[White "Erigaisi Arjun"]
[Black "Rustemov, Alexander"]
[WhiteFideId "35009192"]
[BlackFideId "4119002"]
[WhiteElo "2737"]
[BlackElo "2882"]
[Result "1-0"]
[Round "10"]
[TimeControl "180+2"]
[Date "2023.03.21"]
[WhiteClock "0:01:26"]
[BlackClock "0:00:07"]

1. b3 {[%clk 0:03:00]}  d5 {[%clk 0:02:57]} 2. Bb2 {[%clk 0:03:00]}  Nf6 {[%clk 0:02:58]} 3. e3 {[%clk 0:02:59]}  Bf5 {[%clk 0:02:58]} 4. Nf3 {[%clk 0:02:59]}  h6 {[%clk 0:02:58]} 5. Bxf6 {[%clk 0:02:58]}  gxf6 {[%clk 0:02:56]} 6. d4 {[%clk 0:02:59]}  c6 {[%clk 0:02:45]} 7. Bd3 {[%clk 0:02:58]}  Bxd3 {[%clk 0:02:40]} 8. Qxd3 {[%clk 0:02:59]}  e6 {[%clk 0:02:39]} 9. c4 {[%clk 0:02:54]}  Nd7 {[%clk 0:02:36]} 10. Nc3 {[%clk 0:02:51]}  f5 {[%clk 0:02:36]} 11. O-O {[%clk 0:02:50]}  Bd6 {[%clk 0:02:34]} 12. c5 {[%clk 0:02:50]}  Bc7 {[%clk 0:02:30]} 13. b4 {[%clk 0:02:50]}  a6 {[%clk 0:02:29]} 14. a4 {[%clk 0:02:50]}  Nf6 {[%clk 0:02:26]} 15. b5 {[%clk 0:02:49]}  O-O {[%clk 0:01:58]} 16. b6 {[%clk 0:02:34]}  Bb8 {[%clk 0:01:56]} 17. Nd2 {[%clk 0:02:34]}  h5 {[%clk 0:01:05]} 18. f4 {[%clk 0:02:31]}  Kg7 {[%clk 0:01:02]} 19. Nb3 {[%clk 0:02:26]}  Rg8 {[%clk 0:01:01]} 20. Na5 {[%clk 0:02:25]}  Qd7 {[%clk 0:01:00]} 21. Rf3 {[%clk 0:02:25]}  Kf8 {[%clk 0:01:00]} 22. Raf1 {[%clk 0:02:22]}  Ke7 {[%clk 0:00:59]} 23. Rh3 {[%clk 0:02:20]}  Rg4 {[%clk 0:00:58]} 24. Nd1 {[%clk 0:02:15]}  Kd8 {[%clk 0:00:51]} 25. Nf2 {[%clk 0:02:14]}  Rg6 {[%clk 0:00:50]} 26. Qe2 {[%clk 0:02:13]}  Kc8 {[%clk 0:00:50]} 27. Rxh5 {[%clk 0:02:09]}  Nxh5 {[%clk 0:00:49]} 28. Qxh5 {[%clk 0:02:10]}  Qe8 {[%clk 0:00:48]} 29. Qh7 {[%clk 0:02:03]}  Rg8 {[%clk 0:00:43]} 30. Nd3 {[%clk 0:01:50]}  Rh8 {[%clk 0:00:42]} 31. Qg7 {[%clk 0:01:50]}  Rg8 {[%clk 0:00:42]} 32. Qf6 {[%clk 0:01:50]}  Rg6 {[%clk 0:00:41]} 33. Qh4 {[%clk 0:01:50]}  Qf8 {[%clk 0:00:38]} 34. Rf3 {[%clk 0:01:47]}  Rh6 {[%clk 0:00:38]} 35. Qf2 {[%clk 0:01:42]}  Qg7 {[%clk 0:00:38]} 36. Rg3 {[%clk 0:01:35]}  Qh7 {[%clk 0:00:35]} 37. h3 {[%clk 0:01:35]}  f6 {[%clk 0:00:24]} 38. Nb4 {[%clk 0:01:33]}  Rg6 {[%clk 0:00:07]} 39. Nbxc6 {[%clk 0:01:26]} 1-0


[Site "https://www.chess.com"]

[Event "Titled Tuesday Blitz March 21 Early 2023"]
[White "Bluebaum, Matthias"]
[Black "Harsha Bharathakoti"]
[WhiteFideId "24651516"]
[BlackFideId "5078776"]
[WhiteElo "2638"]
[BlackElo "2481"]
[Result "1-0"]
[Round "10"]
[TimeControl "180+2"]
[Date "2023.03.21"]
[WhiteClock "0:02:00"]
[BlackClock "0:01:06"]

1. d4 {[%clk 0:03:00]}  Nf6 {[%clk 0:02:53]} 2. c4 {[%clk 0:03:00]}  e6 {[%clk 0:02:53]} 3. Nc3 {[%clk 0:03:01]}  Bb4 {[%clk 0:02:53]} 4. e3 {[%clk 0:03:01]}  O-O {[%clk 0:02:51]} 5. Bd2 {[%clk 0:03:02]}  d5 {[%clk 0:02:49]} 6. Nf3 {[%clk 0:03:02]}  b6 {[%clk 0:02:49]} 7. cxd5 {[%clk 0:03:02]}  exd5 {[%clk 0:02:49]} 8. Rc1 {[%clk 0:03:03]}  Bb7 {[%clk 0:02:45]} 9. Bd3 {[%clk 0:03:03]}  Bd6 {[%clk 0:02:45]} 10. Nb5 {[%clk 0:02:57]}  Ne4 {[%clk 0:02:07]} 11. Nxd6 {[%clk 0:02:48]}  Qxd6 {[%clk 0:02:05]} 12. O-O {[%clk 0:02:39]}  Nd7 {[%clk 0:02:05]} 13. b4 {[%clk 0:02:33]}  a6 {[%clk 0:01:56]} 14. a4 {[%clk 0:02:28]}  h6 {[%clk 0:01:28]} 15. Be1 {[%clk 0:02:18]}  Rfc8 {[%clk 0:01:26]} 16. Nd2 {[%clk 0:02:13]}  Ndf6 {[%clk 0:01:19]} 17. f3 {[%clk 0:02:11]}  Nxd2 {[%clk 0:01:19]} 18. Qxd2 {[%clk 0:02:12]}  c5 {[%clk 0:01:08]} 19. dxc5 {[%clk 0:02:02]}  bxc5 {[%clk 0:01:08]} 20. bxc5 {[%clk 0:02:02]}  Rxc5 {[%clk 0:01:08]} 21. Qb4 {[%clk 0:02:03]}  Rc6 {[%clk 0:01:06]} 22. Qxb7 {[%clk 0:02:00]} 1-0


[Site "https://www.chess.com"]

[Event "Titled Tuesday Blitz March 21 Early 2023"]
[White "Pakleza, Zbigniew"]
[Black "Pranav, V"]
[WhiteFideId "1119290"]
[BlackFideId "25060783"]
[WhiteElo "2410"]
[BlackElo "2500"]
[Result "0-1"]
[Round "10"]
[TimeControl "180+2"]
[Date "2023.03.21"]
[WhiteClock "0:00:04"]
[BlackClock "0:00:05"]

1. d4 {[%clk 0:03:00]}  Nf6 {[%clk 0:03:00]} 2. Nf3 {[%clk 0:03:01]}  e6 {[%clk 0:03:00]} 3. Bf4 {[%clk 0:03:01]}  c5 {[%clk 0:03:01]} 4. c3 {[%clk 0:03:01]}  b6 {[%clk 0:03:01]} 5. e3 {[%clk 0:03:00]}  Bb7 {[%clk 0:03:02]} 6. h3 {[%clk 0:03:01]}  Be7 {[%clk 0:03:02]} 7. Nbd2 {[%clk 0:03:01]}  O-O {[%clk 0:03:03]} 8. Bd3 {[%clk 0:03:00]}  d6 {[%clk 0:03:02]} 9. O-O {[%clk 0:03:00]}  Re8 {[%clk 0:03:03]} 10. Qe2 {[%clk 0:02:57]}  Nbd7 {[%clk 0:03:02]} 11. Bh2 {[%clk 0:02:56]}  Bf8 {[%clk 0:03:02]} 12. e4 {[%clk 0:02:56]}  e5 {[%clk 0:02:48]} 13. dxe5 {[%clk 0:02:28]}  Nxe5 {[%clk 0:02:47]} 14. Nxe5 {[%clk 0:02:28]}  dxe5 {[%clk 0:02:48]} 15. Rfd1 {[%clk 0:02:24]}  Qc7 {[%clk 0:02:47]} 16. a4 {[%clk 0:02:19]}  g6 {[%clk 0:02:47]} 17. Nc4 {[%clk 0:02:12]}  Nh5 {[%clk 0:02:47]} 18. Ne3 {[%clk 0:01:56]}  Nf4 {[%clk 0:02:46]} 19. Qc2 {[%clk 0:01:56]}  a6 {[%clk 0:02:38]} 20. Bc4 {[%clk 0:01:51]}  Rad8 {[%clk 0:02:30]} 21. Bxf4 {[%clk 0:01:42]}  exf4 {[%clk 0:02:30]} 22. Nd5 {[%clk 0:01:42]}  Bxd5 {[%clk 0:02:25]} 23. Bxd5 {[%clk 0:01:40]}  Bd6 {[%clk 0:02:23]} 24. Qe2 {[%clk 0:01:32]}  Qc8 {[%clk 0:02:18]} 25. Rd2 {[%clk 0:01:29]}  Be5 {[%clk 0:02:10]} 26. Rad1 {[%clk 0:01:27]}  Kg7 {[%clk 0:02:08]} 27. Bc4 {[%clk 0:01:20]}  Rxd2 {[%clk 0:02:05]} 28. Qxd2 {[%clk 0:01:19]}  Re7 {[%clk 0:01:17]} 29. f3 {[%clk 0:01:18]}  Qc6 {[%clk 0:01:04]} 30. Bxa6 {[%clk 0:00:53]}  Qxa4 {[%clk 0:01:04]} 31. Qe2 {[%clk 0:00:54]}  h5 {[%clk 0:00:53]} 32. Bb5 {[%clk 0:00:50]}  Qa2 {[%clk 0:00:50]} 33. Bc4 {[%clk 0:00:51]}  Qa8 {[%clk 0:00:49]} 34. Qd2 {[%clk 0:00:47]}  Qa7 {[%clk 0:00:43]} 35. Kf1 {[%clk 0:00:38]}  Qb7 {[%clk 0:00:28]} 36. Qd5 {[%clk 0:00:35]}  b5 {[%clk 0:00:25]} 37. Qxb7 {[%clk 0:00:24]}  Rxb7 {[%clk 0:00:26]} 38. Rd5 {[%clk 0:00:24]}  f6 {[%clk 0:00:21]} 39. Be2 {[%clk 0:00:20]}  b4 {[%clk 0:00:17]} 40. Rxc5 {[%clk 0:00:15]}  bxc3 {[%clk 0:00:17]} 41. bxc3 {[%clk 0:00:14]}  Rb1+ {[%clk 0:00:18]} 42. Kf2 {[%clk 0:00:14]}  Rc1 {[%clk 0:00:19]} 43. Bd3 {[%clk 0:00:07]}  Kh6 {[%clk 0:00:09]} 44. Ke2 {[%clk 0:00:06]}  Kg5 {[%clk 0:00:08]} 45. Rc6 {[%clk 0:00:02]}  Kh4 {[%clk 0:00:08]} 46. c4 {[%clk 0:00:02]}  Kg3 {[%clk 0:00:08]} 47. c5 {[%clk 0:00:03]}  Kxg2 {[%clk 0:00:09]} 48. h4 {[%clk 0:00:03]}  Kh3 {[%clk 0:00:08]} 49. Kd2 {[%clk 0:00:04]}  Ra1 {[%clk 0:00:06]} 50. Re6 {[%clk 0:00:04]}  Kxh4 {[%clk 0:00:06]} 51. c6 {[%clk 0:00:04]}  Ra7 {[%clk 0:00:06]} 52. Bb5 {[%clk 0:00:02]}  Kg3 {[%clk 0:00:07]} 53. Kd3 {[%clk 0:00:02]}  Kxf3 {[%clk 0:00:06]} 54. Re8 {[%clk 0:00:03]}  h4 {[%clk 0:00:06]} 55. Rh8 {[%clk 0:00:03]}  g5 {[%clk 0:00:06]} 56. Kc4 {[%clk 0:00:03]}  Kg2 {[%clk 0:00:05]} 57. Kc5 {[%clk 0:00:04]}  f3 {[%clk 0:00:05]} 0-1


[Site "https://www.chess.com"]

[Event "Titled Tuesday Blitz March 21 Early 2023"]
[White "Deac, Bogdan-Daniel"]
[Black "Krysa, Leandro"]
[WhiteFideId "1226380"]
[BlackFideId "116807"]
[WhiteElo "2649"]
[BlackElo "2485"]
[Result "1/2-1/2"]
[Round "10"]
[TimeControl "180+2"]
[Date "2023.03.21"]
[WhiteClock "0:00:04"]
[BlackClock "0:00:17"]

1. d4 {[%clk 0:03:00]}  Nf6 {[%clk 0:03:00]} 2. c4 {[%clk 0:03:00]}  g6 {[%clk 0:03:00]} 3. Nc3 {[%clk 0:03:00]}  d5 {[%clk 0:03:01]} 4. cxd5 {[%clk 0:02:55]}  Nxd5 {[%clk 0:03:02]} 5. Bd2 {[%clk 0:02:55]}  c5 {[%clk 0:03:00]} 6. e4 {[%clk 0:02:52]}  Nxc3 {[%clk 0:02:57]} 7. Bxc3 {[%clk 0:02:53]}  cxd4 {[%clk 0:02:45]} 8. Bxd4 {[%clk 0:02:54]}  e5 {[%clk 0:02:44]} 9. Bxe5 {[%clk 0:02:54]}  Bb4+ {[%clk 0:02:45]} 10. Bc3 {[%clk 0:02:54]}  Bxc3+ {[%clk 0:02:45]} 11. bxc3 {[%clk 0:02:55]}  Qa5 {[%clk 0:02:46]} 12. Qc2 {[%clk 0:02:42]}  O-O {[%clk 0:02:43]} 13. Bd3 {[%clk 0:02:41]}  Nd7 {[%clk 0:02:33]} 14. Ne2 {[%clk 0:02:40]}  Nc5 {[%clk 0:02:33]} 15. O-O {[%clk 0:02:37]}  b6 {[%clk 0:02:29]} 16. Bc4 {[%clk 0:02:34]}  Be6 {[%clk 0:02:17]} 17. Bxe6 {[%clk 0:02:31]}  Nxe6 {[%clk 0:02:18]} 18. Rfd1 {[%clk 0:02:30]}  Rfd8 {[%clk 0:02:11]} 19. Nd4 {[%clk 0:02:10]}  Qe5 {[%clk 0:01:52]} 20. Nc6 {[%clk 0:01:50]}  Rxd1+ {[%clk 0:01:50]} 21. Rxd1 {[%clk 0:01:51]}  Qc5 {[%clk 0:01:44]} 22. Nb4 {[%clk 0:01:51]}  Rc8 {[%clk 0:01:31]} 23. Nd5 {[%clk 0:01:50]}  Nc7 {[%clk 0:01:31]} 24. Rd3 {[%clk 0:01:22]}  Nxd5 {[%clk 0:01:20]} 25. exd5 {[%clk 0:01:23]}  Rd8 {[%clk 0:01:20]} 26. Qd2 {[%clk 0:01:20]}  Rd6 {[%clk 0:01:18]} 27. h4 {[%clk 0:01:17]}  h5 {[%clk 0:01:18]} 28. a4 {[%clk 0:01:14]}  a6 {[%clk 0:01:13]} 29. Rd4 {[%clk 0:01:14]}  b5 {[%clk 0:01:11]} 30. axb5 {[%clk 0:01:15]}  axb5 {[%clk 0:01:11]} 31. g3 {[%clk 0:01:11]}  Kg7 {[%clk 0:01:06]} 32. Kg2 {[%clk 0:01:08]}  Kg8 {[%clk 0:01:03]} 33. Kh2 {[%clk 0:00:16]}  Kg7 {[%clk 0:01:01]} 34. f3 {[%clk 0:00:16]}  Qc7 {[%clk 0:00:47]} 35. Kg2 {[%clk 0:00:13]}  Qe7 {[%clk 0:00:34]} 36. Qd3 {[%clk 0:00:07]}  Qd7 {[%clk 0:00:28]} 37. g4 {[%clk 0:00:05]}  hxg4 {[%clk 0:00:22]} 38. fxg4 {[%clk 0:00:06]}  Rf6 {[%clk 0:00:19]} 39. d6 {[%clk 0:00:04]}  Qb7+ {[%clk 0:00:19]} 40. Qe4 {[%clk 0:00:02]}  Qxe4+ {[%clk 0:00:17]} 41. Rxe4 {[%clk 0:00:03]}  Rxd6 {[%clk 0:00:18]} 42. Rb4 {[%clk 0:00:04]}  Rd3 {[%clk 0:00:17]} 43. Rxb5 {[%clk 0:00:04]}  Rxc3 {[%clk 0:00:17]} 44. g5 {[%clk 0:00:04]}  Rd3 {[%clk 0:00:17]} 45. Re5 {[%clk 0:00:04]} 1/2-1/2


[Site "https://www.chess.com"]